bitfinex-derivatives/quotes_BTCF0:USTF0_20250318
["timestamp","ask_amount","ask_price","bid_price","bid_amount"]
[1742280216214,0.214213,82507.0,82506.0,0.1036]
[1742280217212,0.32255838,82507.0,82506.0,0.350133]
[1742280218413,0.0606015,82513.0,82512.0,0.0606014]
[1742280218613,0.0606015,82513.0,82512.0,0.5450014]
[1742280218814,0.0606015,82513.0,82512.0,0.6489014]
[1742280219205,0.00018183,82515.0,82514.0,0.1212012]
[1742280219407,0.0605958,82521.0,82517.0,0.1211953]
[1742280219706,0.0605958,82521.0,82518.0,0.3236953]
[1742280219707,0.4819939,82519.0,82518.0,0.3236953]
[1742280219906,0.1211939,82519.0,82518.0,0.3236953]
[1742280220309,0.1211939,82519.0,82518.0,0.0992]
[1742280220512,1.391,82519.0,82479.0,0.3608]
[1742280220722,0.0606241,82482.0,82479.0,0.3866]
[1742280220906,0.1182512,82480.0,82479.0,0.1266]
[1742280221508,0.1182512,82480.0,82479.0,0.3966]
[1742280221709,0.1182512,82480.0,82479.0,0.4026]
[1742280222113,0.1182512,82480.0,82479.0,0.5244926]
[1742280222316,0.1182512,82480.0,82479.0,0.40324]
[1742280222918,0.1182512,82480.0,82479.0,0.40824]
[1742280223113,0.1182512,82480.0,82479.0,0.281]
[1742280223323,0.1182512,82480.0,82479.0,0.40808]
[1742280223513,0.1182512,82480.0,82479.0,0.50488]
[1742280223709,0.1182512,82480.0,82479.0,1.05648]
[1742280223915,0.1212629,82472.0,82471.0,0.00018183]
[1742280224216,0.8428629,82472.0,82471.0,0.12734183]
[1742280224412,0.8378629,82472.0,82471.0,0.12734183]
[1742280225236,0.8378629,82472.0,82471.0,0.13334183]
[1742280225441,0.8378629,82472.0,82471.0,0.13834183]
[1742280226139,0.606441,82455.0,82430.0,0.29011023]
[1742280226335,0.1213232,82431.0,82430.0,0.32011023]
[1742280226529,0.1213394,82420.0,82419.0,0.0124043]
[1742280226730,0.1213394,82420.0,82419.0,0.1442033]
[1742280226731,0.8429394,82420.0,82419.0,0.1442033]
[1742280226938,0.8429394,82420.0,82419.0,0.1242033]
[1742280227143,0.1213468,82415.0,82414.0,0.43534316]
[1742280227337,0.1213468,82415.0,82414.0,0.56422316]
[1742280227533,0.1213468,82415.0,82414.0,0.56418316]
[1742280228336,0.1223468,82415.0,82414.0,0.56418316]
[1742280228835,0.1223468,82415.0,82414.0,0.56414316]
[1742280229041,0.1213512,82412.0,82411.0,0.00018194]
[1742280229237,0.4821512,82412.0,82411.0,0.12898194]
[1742280231340,0.4831512,82412.0,82411.0,0.12898194]
[1742280231938,0.4821512,82412.0,82411.0,0.12898194]
[1742280232139,0.4841512,82412.0,82411.0,0.12898194]
[1742280233441,0.4841512,82412.0,82411.0,0.25033464]
[1742280233638,0.4841512,82412.0,82411.0,0.49033464]
[1742280234038,0.1233512,82412.0,82411.0,0.49033464]
[1742280235029,0.1233512,82412.0,82411.0,0.12898194]
[1742280235544,0.3322512,82412.0,82411.0,0.12898194]
[1742280237039,0.3322512,82412.0,82411.0,0.12826194]
[1742280239045,0.3322512,82412.0,82411.0,0.00018194]
[1742280239243,0.3322512,82412.0,82411.0,0.12822194]
[1742280240147,0.3322512,82412.0,82411.0,0.01762934]
[1742280240541,0.1213556,82409.0,82408.0,0.92056]
[1742280240845,0.1213556,82409.0,82408.0,1.04852]
[1742280241849,0.1233556,82409.0,82408.0,1.04852]
[1742280243237,0.2329556,82409.0,82408.0,1.04828]
[1742280243649,0.1213615,82405.0,82404.0,1e-07]
[1742280243851,0.1213645,82403.0,82400.0,0.12779186]
[1742280244049,0.1213762,82395.0,82394.0,0.006]
[1742280244351,0.1213821,82391.0,82390.0,0.8896609]
[1742280244651,0.4821821,82391.0,82390.0,0.8896609]
[1742280245240,0.4821821,82391.0,82390.0,1.0173009]
[1742280245853,0.4831821,82391.0,82390.0,1.0173009]
[1742280246046,0.4831821,82391.0,82390.0,1.0172609]
[1742280248248,0.4831821,82391.0,82390.0,0.8896609]
[1742280248249,0.1223821,82391.0,82390.0,0.8896609]
[1742280248453,0.1223821,82391.0,82390.0,1.1384045]
[1742280248648,0.1223821,82391.0,82390.0,1.1990956]
[1742280249245,0.001,82391.0,82390.0,1.4290956]
[1742280249448,0.3608,82402.0,82401.0,0.1213674]
[1742280249644,0.3608,82402.0,82401.0,0.5186474]
[1742280250049,0.4821659,82402.0,82401.0,0.12728]
[1742280250245,0.4821659,82402.0,82401.0,0.32928]
[1742280250751,0.4821659,82402.0,82401.0,0.4506474]
[1742280250955,0.1213821,82391.0,82390.0,1.0717285]
[1742280251164,0.1213821,82391.0,82390.0,1.259859]
[1742280251350,0.1213821,82391.0,82390.0,1.132419]
[1742280251551,0.1223821,82391.0,82390.0,1.14668907]
[1742280251760,0.1223821,82391.0,82390.0,1.27404907]
[1742280252058,0.1223821,82391.0,82390.0,1.132419]
[1742280252259,0.1203821,82391.0,82390.0,1.0110419]
[1742280252554,0.1203821,82391.0,82390.0,0.8896609]
[1742280252754,0.1203821,82391.0,82390.0,1.1383245]
[1742280252954,0.1213821,82391.0,82390.0,1.0130445]
[1742280253146,0.002,82391.0,82390.0,1.4202845]
[1742280253349,0.1820593,82401.0,82400.0,0.1213674]
[1742280253557,0.2427454,82401.0,82400.0,0.2486074]
[1742280253955,0.2427454,82401.0,82400.0,0.26299118]
[1742280254158,0.2427454,82401.0,82400.0,0.2486074]
[1742280254346,0.2427454,82401.0,82400.0,0.26299103]
[1742280254951,0.0606838,82401.0,82400.0,0.26299103]
[1742280255552,0.0606838,82401.0,82400.0,0.54299103]
[1742280255958,0.0606838,82401.0,82400.0,0.54499103]
[1742280256849,0.3608,82402.0,82401.0,0.1213674]
[1742280257049,0.4821659,82402.0,82401.0,0.49195103]
[1742280257255,0.4821659,82402.0,82401.0,0.49204683]
[1742280257455,0.4821659,82402.0,82401.0,0.24204683]
[1742280257759,0.4821659,82402.0,82401.0,0.26544176]
[1742280258264,0.4821659,82402.0,82401.0,0.26744176]
[1742280258460,0.4821659,82402.0,82401.0,0.26758596]
[1742280259254,0.4821659,82402.0,82401.0,0.26734293]
[1742280259670,0.4821659,82402.0,82401.0,0.24409645]
[1742280260460,0.4821659,82402.0,82401.0,0.12272905]
[1742280260959,0.4821659,82402.0,82401.0,0.14332905]
[1742280261168,0.4821659,82402.0,82401.0,0.14318259]
[1742280261461,0.1213777,82394.0,82393.0,0.1028]
[1742280261662,0.1213777,82394.0,82388.0,0.21775633]
[1742280261663,0.1213821,82391.0,82388.0,0.21775633]
[1742280261966,0.1213821,82391.0,82390.0,1.0164209]
[1742280262857,0.1213821,82391.0,82390.0,1.0184209]
[1742280264963,0.1223821,82391.0,82390.0,1.1171209]
[1742280265656,0.1213821,82391.0,82390.0,1.1171209]
[1742280265963,0.1223821,82391.0,82390.0,1.2385045]
[1742280266570,0.1223821,82391.0,82390.0,1.5085045]
[1742280266862,0.1223821,82391.0,82390.0,1.6109045]
[1742280267359,0.1223821,82391.0,82390.0,1.6104245]
[1742280271355,0.001,82391.0,82390.0,1.6104245]
[1742280271552,0.1223821,82391.0,82390.0,1.6104245]
[1742280272561,0.1223821,82391.0,82390.0,1.4841445]
[1742280272767,0.1223821,82391.0,82390.0,1.6100645]
[1742280275562,0.1213685,82401.0,82400.0,0.1720496]
[1742280275767,0.1213685,82401.0,82400.0,0.7795296]
[1742280276467,0.2330685,82401.0,82400.0,0.7795296]
[1742280276866,0.3509685,82401.0,82400.0,0.7795296]
[1742280278368,0.2330685,82401.0,82400.0,0.7795296]
[1742280278577,0.1213685,82401.0,82400.0,0.7795296]
[1742280278764,0.2326685,82401.0,82400.0,0.7795296]
[1742280279170,0.3511685,82401.0,82400.0,0.7795296]
[1742280279473,0.3511685,82401.0,82400.0,0.5095296]
[1742280279872,0.3511685,82401.0,82400.0,0.3881637]
[1742280280067,0.3511685,82401.0,82400.0,0.2624837]
[1742280280272,0.3511685,82401.0,82387.0,0.00991837]
[1742280280273,0.121391,82385.0,82384.0,0.13108513]
[1742280280471,0.482191,82385.0,82384.0,0.13108513]
[1742280280668,0.482191,82385.0,82384.0,0.26208513]
[1742280280869,0.711591,82385.0,82384.0,0.26208513]
[1742280281067,0.711591,82385.0,82384.0,0.13108513]
[1742280281271,0.711591,82385.0,82384.0,0.26204513]
[1742280281683,0.712591,82385.0,82384.0,0.26204513]
[1742280282077,0.713591,82385.0,82384.0,0.26204513]
[1742280282280,0.713591,82385.0,82384.0,0.38343763]
[1742280282579,0.713591,82385.0,82384.0,0.26204513]
[1742280283878,0.712591,82385.0,82384.0,0.26204513]
[1742280284371,0.712591,82385.0,82384.0,0.26176513]
[1742280284572,0.77161498,82385.0,82384.0,0.13068]
[1742280285378,0.77061498,82385.0,82384.0,0.13068]
[1742280285681,0.77161498,82385.0,82384.0,0.13068]
[1742280286383,0.77061498,82385.0,82384.0,0.13068]
[1742280287877,0.77061498,82385.0,82384.0,0.63118]
[1742280287878,0.54121498,82385.0,82384.0,0.63118]
[1742280288077,0.54121498,82385.0,82384.0,0.6218925]
[1742280288276,0.2767124,82388.0,82384.0,0.6218925]
[1742280288277,0.2160188,82388.0,82387.0,0.121388]
[1742280288574,0.3374054,82388.0,82387.0,0.4104]
[1742280288774,0.121391,82385.0,82384.0,0.2305]
[1742280289087,0.482191,82385.0,82384.0,0.2493]
[1742280289387,0.482191,82385.0,82382.0,0.00018206]
[1742280289576,0.1214205,82365.0,82350.0,0.12154833]
[1742280289883,0.4822205,82365.0,82364.0,0.13656]
[1742280290083,0.4822205,82365.0,82364.0,0.006]
[1742280290583,0.1214337,82356.0,82355.0,0.2303]
[1742280290781,0.1214337,82356.0,82355.0,0.3517352]
[1742280290986,0.1214337,82356.0,82355.0,0.4821352]
[1742280291182,0.1214337,82356.0,82355.0,0.2303]
[1742280291486,0.4822323,82357.0,82356.0,0.1214337]
[1742280291678,0.1821447,82362.0,82361.0,0.1214249]
[1742280291981,0.0607124,82362.0,82361.0,0.1214249]
[1742280292484,0.1637124,82362.0,82361.0,0.2517449]
[1742280293277,0.1637124,82362.0,82359.0,0.0607144]
[1742280293278,0.1214278,82360.0,82359.0,0.0607144]
[1742280294080,0.26658688,82360.0,82359.0,0.0607144]
[1742280294380,0.1214293,82359.0,82358.0,0.1302]
[1742280294679,0.3353293,82359.0,82358.0,0.2516308]
[1742280294886,0.3353293,82359.0,82358.0,0.2513908]
[1742280295082,0.2258293,82359.0,82358.0,0.2513908]
[1742280295392,0.1214293,82359.0,82358.0,0.2513908]
[1742280295986,0.1224293,82359.0,82358.0,0.2513908]
[1742280296197,0.1224293,82359.0,82358.0,0.2512308]
[1742280296385,0.1224293,82359.0,82358.0,0.1298]
[1742280297986,0.1224293,82359.0,82358.0,0.2512308]
[1742280298993,0.4832293,82359.0,82358.0,0.2512308]
[1742280299194,0.4832293,82359.0,82358.0,0.1298]
[1742280299893,0.1214352,82355.0,82354.0,0.006]
[1742280300081,0.1214514,82344.0,82337.0,0.3608]
[1742280300396,0.1214514,82344.0,82343.0,0.13552]
[1742280300692,0.1214514,82344.0,82343.0,0.2569729]
[1742280300882,0.1214514,82344.0,82343.0,0.13552]
[1742280301083,0.1214514,82344.0,82343.0,0.2569729]
[1742280301288,0.1224514,82344.0,82343.0,0.2569729]
[1742280301487,0.1224514,82344.0,82343.0,0.2568129]
[1742280301685,0.2392514,82344.0,82343.0,0.2568129]
[1742280301885,0.2392514,82344.0,82343.0,0.13532]
[1742280302288,0.2392514,82344.0,82343.0,0.13548]
[1742280302485,0.2392514,82344.0,82343.0,0.2569329]
[1742280303489,0.1224514,82344.0,82343.0,0.2569329]
[1742280303799,0.0607183,82354.0,82351.0,0.1214411]
[1742280303998,0.12162206,82352.0,82351.0,0.5208811]
[1742280304190,0.12162206,82352.0,82351.0,0.6354811]
[1742280305196,0.12162206,82352.0,82351.0,0.64559046]
[1742280305382,0.12262206,82352.0,82351.0,0.6354811]
[1742280305798,0.12262206,82352.0,82351.0,0.5060411]
[1742280305992,0.12262206,82352.0,82351.0,0.5138]
[1742280306194,0.12362166,82352.0,82351.0,0.6352411]
[1742280306391,0.12362166,82352.0,82351.0,0.5138]
[1742280306894,0.12362166,82352.0,82351.0,0.12928]
[1742280307100,0.23672166,82352.0,82351.0,0.12928]
[1742280307785,0.23672166,82352.0,82351.0,0.13028]
[1742280307986,0.23572166,82352.0,82351.0,0.13028]
[1742280308182,0.23672166,82352.0,82351.0,0.13028]
[1742280308487,0.23572166,82352.0,82351.0,0.13028]
[1742280310887,0.1214499,82345.0,82344.0,0.1185]
[1742280311089,0.1214499,82345.0,82330.0,0.0607359]
[1742280311090,0.0607305,82338.0,82330.0,0.0607359]
[1742280311392,0.1214632,82336.0,82335.0,0.35852]
[1742280311597,0.1214632,82336.0,82335.0,0.4799847]
[1742280312297,0.48390231,82337.0,82336.0,0.1214632]
[1742280312497,0.4812623,82337.0,82336.0,0.5818632]
[1742280312690,0.001,82345.0,82344.0,0.1214514]
[1742280312891,0.001,82345.0,82344.0,0.3814514]
[1742280313086,0.1214435,82350.0,82349.0,0.1821624]
[1742280313395,0.1214435,82350.0,82349.0,0.4421624]
[1742280313396,0.2428934,82350.0,82349.0,0.4421624]
[1742280314099,0.2428934,82350.0,82349.0,0.26]
[1742280314296,0.2428934,82350.0,82349.0,0.121444]
[1742280314598,0.2428934,82350.0,82349.0,0.480284]
[1742280315303,0.1224435,82350.0,82349.0,0.598984]
[1742280315788,0.0617216,82350.0,82349.0,0.598984]
[1742280315995,0.0607216,82350.0,82349.0,1.520984]
[1742280316502,0.0607216,82350.0,82349.0,1.881784]
[1742280316895,0.00018206,82352.0,82351.0,0.1214411]
[1742280317092,0.12162166,82352.0,82351.0,0.4800011]
[1742280317293,0.12162166,82352.0,82351.0,0.35856]
[1742280317498,0.12162166,82352.0,82351.0,0.4800011]
[1742280317903,0.35142166,82352.0,82351.0,0.4800011]
[1742280319799,0.1214426,82350.0,82349.0,0.922]
[1742280319994,0.1214426,82350.0,82349.0,1.0502]
[1742280320196,0.1214426,82350.0,82349.0,1.171644]
[1742280320396,0.1214426,82350.0,82349.0,1.287244]
[1742280321308,0.1214426,82350.0,82349.0,1.161044]
[1742280321505,0.1214426,82350.0,82349.0,1.539604]
[1742280322005,0.1214426,82350.0,82349.0,1.289604]
[1742280322406,0.1214426,82350.0,82349.0,1.16816]
[1742280322610,0.18048983,82350.0,82349.0,1.05244]
[1742280323506,0.18048983,82350.0,82349.0,1.16174]
[1742280324306,0.18048983,82350.0,82349.0,1.16074]
[1742280325612,0.39650863,82350.0,82349.0,1.16074]
[1742280325806,0.39650863,82350.0,82349.0,1.15974]
[1742280326011,0.39650863,82350.0,82349.0,1.16074]
[1742280328511,0.75730863,82350.0,82349.0,1.16074]
[1742280329408,0.54128983,82350.0,82349.0,1.16074]
[1742280330112,0.78378983,82350.0,82349.0,1.16074]
[1742280330615,0.78378983,82350.0,82349.0,1.15978]
[1742280332507,0.78378983,82350.0,82349.0,1.0323]
[1742280332704,0.78378983,82350.0,82349.0,1.15954]
[1742280333903,0.78378983,82350.0,82349.0,1.28504]
[1742280334307,0.78378983,82350.0,82349.0,1.15954]
[1742280334910,0.78378983,82350.0,82349.0,0.36304]
[1742280338612,0.54128983,82350.0,82349.0,0.36304]
[1742280338806,0.54128983,82350.0,82349.0,0.48874]
[1742280339202,0.77918983,82350.0,82349.0,0.44122329]
[1742280341207,0.77918983,82350.0,82349.0,0.18986329]
[1742280341617,0.77918983,82350.0,82349.0,0.001]
[1742280341813,0.121444,82349.0,82348.0,1e-07]
[1742280342016,0.1214662,82334.0,82327.0,0.1139]
[1742280342212,0.1214662,82334.0,82333.0,0.13244]
[1742280342605,0.3530662,82334.0,82333.0,0.13244]
[1742280343116,0.36368032,82334.0,82333.0,0.13244]
[1742280343305,0.3530662,82334.0,82333.0,0.2549076]
[1742280343512,0.3530662,82334.0,82333.0,0.1284676]
[1742280343712,0.3530662,82334.0,82333.0,0.2549876]
[1742280344010,0.3530662,82334.0,82333.0,0.13352]
[1742280344914,0.3540662,82334.0,82333.0,0.25282]
[1742280345411,0.3540662,82334.0,82333.0,0.3742876]
[1742280345720,0.3540662,82334.0,82333.0,0.25282]
[1742280346414,0.3540662,82334.0,82333.0,0.1263]
[1742280346605,0.3540662,82334.0,82333.0,0.007]
[1742280346811,0.1214706,82331.0,82330.0,0.92204]
[1742280347006,0.1214706,82331.0,82330.0,1.04828]
[1742280347212,0.1214706,82331.0,82330.0,0.12624]
[1742280348114,0.1224706,82331.0,82330.0,0.12624]
[1742280348316,0.1234706,82331.0,82330.0,0.12624]
[1742280349620,0.1214809,82324.0,82323.0,0.006]
[1742280349822,0.1215104,82304.0,82303.0,0.006]
[1742280350414,0.2377,82305.0,82303.0,0.13224]
[1742280350614,0.359209,82305.0,82304.0,0.1183]
[1742280350826,0.3695214,82305.0,82304.0,0.1183]
[1742280351225,0.359209,82305.0,82304.0,0.24446]
[1742280351616,0.359209,82305.0,82304.0,0.24462]
[1742280351818,0.1215104,82304.0,82303.0,0.006]
[1742280352118,0.3715104,82304.0,82303.0,0.006]
[1742280352310,0.6104104,82304.0,82303.0,0.006]
[1742280353026,0.6114104,82304.0,82303.0,0.006]
[1742280353924,0.6124104,82304.0,82303.0,0.006]
[1742280356024,0.6124104,82304.0,82303.0,0.13196]
[1742280357413,0.002,82304.0,82303.0,0.2534719]
[1742280357618,0.1235104,82304.0,82303.0,0.5060719]
[1742280358225,0.1235104,82304.0,82303.0,0.2586]
[1742280358427,0.1235104,82304.0,82303.0,0.38448]
[1742280359827,0.2597104,82304.0,82303.0,0.38448]
[1742280360225,0.1235104,82304.0,82303.0,0.2586]
[1742280360532,0.1235104,82304.0,82303.0,0.38432]
[1742280361128,0.45365763,82304.0,82303.0,0.38432]
[1742280361534,0.45365763,82304.0,82303.0,0.2586]
[1742280361722,0.31875763,82304.0,82303.0,0.38424]
[1742280362225,0.41875763,82304.0,82303.0,0.38424]
[1742280362617,0.31875763,82304.0,82303.0,0.2586]
[1742280362821,0.31875763,82304.0,82303.0,0.38412]
[1742280363021,0.56875763,82304.0,82303.0,0.38412]
[1742280364229,0.56875763,82304.0,82303.0,0.006]
[1742280365030,0.56775763,82304.0,82303.0,0.006]
[1742280365431,0.56675763,82304.0,82303.0,0.006]
[1742280365627,0.56775763,82304.0,82303.0,0.006]
[1742280365832,0.1215119,82303.0,82302.0,0.673162]
[1742280366032,0.4986119,82303.0,82302.0,0.673162]
[1742280366222,0.6266119,82303.0,82302.0,0.673162]
[1742280367130,0.1215134,82302.0,82301.0,0.12548]
[1742280367329,0.7423134,82302.0,82301.0,0.12548]
[1742280367523,0.9980134,82302.0,82301.0,0.12548]
[1742280368626,0.9980134,82302.0,82301.0,0.26108]
[1742280368826,0.9980134,82302.0,82301.0,0.12548]
[1742280369035,0.1215149,82301.0,82300.0,0.0643563]
[1742280369236,0.3915149,82301.0,82300.0,0.0334159]
[1742280369536,0.1215252,82294.0,82289.0,0.12504]
[1742280369833,0.7423252,82294.0,82289.0,0.12504]
[1742280370032,0.7423252,82294.0,82280.0,0.1215447]
[1742280370229,0.7423252,82294.0,82282.0,0.12496]
[1742280370534,0.7423252,82294.0,82287.0,0.268]
[1742280370535,1.0110252,82294.0,82287.0,0.268]
[1742280372225,1.02151124,82294.0,82287.0,0.268]
[1742280376029,1.08055847,82294.0,82287.0,0.268]
[1742280376233,1.08055847,82294.0,82289.0,0.12436]
[1742280376831,1.08055847,82294.0,82287.0,0.268]
[1742280377032,0.54137243,82294.0,82293.0,0.13028]
[1742280377927,0.54137243,82294.0,82293.0,0.006]
[1742280379027,0.82137243,82294.0,82293.0,0.006]
[1742280379837,0.1215326,82289.0,82288.0,0.12436]
[1742280380035,0.1215326,82289.0,82288.0,0.37576]
[1742280380835,0.4015326,82289.0,82288.0,0.37576]
[1742280381225,0.5247326,82289.0,82288.0,0.37576]
[1742280381430,0.2447326,82289.0,82288.0,0.2514]
[1742280381638,0.4847326,82289.0,82288.0,0.37556]
[1742280381831,0.2447326,82289.0,82288.0,0.37556]
[1742280382025,0.5047326,82289.0,82288.0,0.37556]
[1742280382240,0.2447326,82289.0,82288.0,0.37556]
[1742280382927,0.30377983,82289.0,82288.0,0.37548]
[1742280383340,0.1215548,82274.0,82273.0,0.006]
[1742280383538,0.1215548,82274.0,82273.0,0.26104]
[1742280384441,0.1215548,82274.0,82273.0,0.137]
[1742280384633,0.1225548,82274.0,82273.0,0.2612]
[1742280385036,0.1225548,82274.0,82273.0,0.3969]
[1742280385037,0.1235548,82274.0,82273.0,0.3969]
[1742280385243,0.1225548,82274.0,82273.0,0.5211]
[1742280385443,0.1225548,82274.0,82273.0,0.3969]
[1742280385633,0.1225548,82274.0,82273.0,0.52106]
[1742280386040,0.1215548,82274.0,82273.0,0.52106]
[1742280387143,0.18060203,82274.0,82273.0,0.52106]
[1742280388338,0.18060203,82274.0,82273.0,0.6426162]
[1742280388937,0.18060203,82274.0,82273.0,0.6424962]
[1742280390951,0.1215548,82274.0,82273.0,0.5184562]
[1742280391144,0.18183692,82279.0,82278.0,0.1215488]
[1742280391449,0.30338432,82279.0,82278.0,0.4823488]
[1742280392142,0.03056229,82282.0,82279.0,0.060773]
[1742280392343,0.21824966,82284.0,82283.0,0.1215415]
[1742280392546,0.21824966,82284.0,82283.0,0.4854615]
[1742280392547,0.33978966,82284.0,82283.0,0.4854615]
[1742280392946,0.33978966,82284.0,82283.0,0.4856615]
[1742280393952,0.12154,82284.0,82283.0,0.4856615]
[1742280394250,0.12154,82284.0,82283.0,0.4855815]
[1742280394546,0.12254,82284.0,82283.0,0.4855815]
[1742280394942,0.14554442,82285.0,82284.0,0.12154]
[1742280395140,0.14554442,82285.0,82284.0,0.38154]
[1742280395341,0.26708292,82285.0,82284.0,0.38154]
[1742280396538,0.14554442,82285.0,82284.0,0.38154]
[1742280396748,0.14554442,82285.0,82284.0,0.38554]
[1742280397634,0.2673534,82289.0,82285.0,0.1215385]
[1742280397635,0.14554442,82286.0,82285.0,0.1215385]
[1742280397838,0.14554442,82286.0,82285.0,0.7123385]
[1742280398242,0.14582,82289.0,82288.0,0.1215341]
[1742280398446,0.21824966,82300.0,82293.0,0.0607629]
[1742280398637,0.21984967,82300.0,82299.0,0.1215178]
[1742280398842,0.33976606,82300.0,82299.0,0.5055178]
[1742280399037,0.33976606,82300.0,82299.0,0.6356178]
[1742280400549,0.33976606,82300.0,82299.0,0.64598332]
[1742280401139,0.34076606,82300.0,82299.0,0.64598332]
[1742280402050,0.34076606,82300.0,82299.0,0.6356178]
[1742280402248,0.1225164,82300.0,82299.0,0.6356178]
[1742280402441,0.1225164,82300.0,82299.0,0.64600552]
[1742280402642,0.1225164,82300.0,82299.0,0.6356178]
[1742280403050,0.1225164,82300.0,82299.0,0.7596178]
[1742280404353,0.001,82300.0,82299.0,0.7596178]
[1742280405353,0.1215003,82311.0,82304.0,0.0607549]
[1742280405547,0.21824966,82313.0,82307.0,0.121506]
[1742280405849,0.12168679,82308.0,82307.0,0.495386]
[1742280406048,0.12168679,82308.0,82307.0,0.12388]
[1742280406448,0.0607563,82303.0,82299.0,0.1301]
[1742280406751,0.1215178,82299.0,82298.0,0.00018229]
[1742280406961,0.1215178,82299.0,82298.0,0.24578159]
[1742280407144,0.12531609,82299.0,82298.0,0.24578159]
[1742280407454,0.12531609,82299.0,82298.0,0.37738159]
[1742280407655,0.1205178,82299.0,82298.0,0.37738159]
[1742280408445,0.12431616,82299.0,82298.0,0.37838159]
[1742280408759,0.12431616,82299.0,82298.0,0.65838159]
[1742280409754,0.13532341,82299.0,82298.0,0.66038159]
[1742280410145,0.13532341,82299.0,82298.0,0.78918159]
[1742280410547,0.1215154,82301.0,82300.0,0.1822708]
[1742280410847,0.1215154,82301.0,82300.0,0.4622708]
[1742280411150,0.1215154,82301.0,82300.0,0.7181708]
[1742280411953,0.1215154,82301.0,82300.0,0.7201708]
[1742280412154,0.1215094,82305.0,82304.0,0.121509]
[1742280412353,0.0607542,82306.0,82304.0,0.121509]
[1742280412354,0.1215076,82306.0,82305.0,0.1822597]
[1742280412554,0.1215076,82306.0,82305.0,0.5460997]
[1742280413559,0.1225076,82306.0,82305.0,0.5460997]
[1742280413858,0.2473076,82306.0,82305.0,0.5460997]
[1742280414257,0.001,82306.0,82305.0,0.5460997]
[1742280414762,0.1214997,82312.0,82311.0,0.1822465]
[1742280414946,0.1214997,82312.0,82311.0,1.3447265]
[1742280415655,0.2595,82312.0,82311.0,1.7055265]
[1742280415963,0.1214912,82318.0,82317.0,0.1822332]
[1742280416160,0.1214912,82318.0,82317.0,0.31825316]
[1742280416364,0.1214912,82318.0,82317.0,0.58825316]
[1742280416863,0.1214912,82318.0,82317.0,0.40601996]
[1742280417055,0.1214912,82318.0,82317.0,0.52751126]
[1742280417660,0.00018229,82320.0,82319.0,0.1214883]
[1742280417962,0.12166909,82320.0,82319.0,0.41203227]
[1742280418351,0.00018229,82320.0,82319.0,0.41203227]
[1742280418557,0.1214788,82326.0,82325.0,0.1214795]
[1742280418757,0.0607361,82330.0,82329.0,0.1214736]
[1742280418961,0.121469,82333.0,82332.0,0.1214676]
[1742280419255,0.251769,82333.0,82332.0,0.3714676]
[1742280420962,0.004,82333.0,82332.0,0.3714676]
[1742280421148,0.0607325,82335.0,82334.0,0.1214662]
[1742280421355,0.1214647,82335.0,82334.0,0.92236]
[1742280421652,0.1214647,82335.0,82334.0,1.04956]
[1742280422054,0.2495647,82335.0,82334.0,1.04956]
[1742280422453,0.2495647,82335.0,82334.0,0.92236]
[1742280422654,0.2535647,82335.0,82334.0,1.04948]
[1742280422860,0.2535647,82335.0,82334.0,0.92236]
[1742280423651,0.1254647,82335.0,82334.0,1.16236]
[1742280423853,0.2535647,82335.0,82334.0,1.29216]
[1742280424058,0.2535647,82335.0,82334.0,0.92236]
[1742280424364,0.31262855,82335.0,82334.0,0.92236]
[1742280424558,0.1214795,82325.0,82317.0,0.92232]
[1742280424954,0.1414795,82325.0,82317.0,0.92232]
[1742280425160,0.1414795,82325.0,82324.0,0.12734229]
[1742280425354,0.2732795,82325.0,82324.0,0.12734229]
[1742280425657,0.0607425,82325.0,82317.0,0.92232]
[1742280425857,0.1812324,82323.0,82322.0,0.121478]
[1742280426264,0.1792324,82323.0,82322.0,0.121478]
[1742280426570,0.1214883,82319.0,82318.0,0.3176649]
[1742280426772,0.1214883,82319.0,82318.0,0.5976649]
[1742280427864,0.1194883,82319.0,82318.0,0.5976649]
[1742280428272,0.1194883,82319.0,82318.0,0.5996649]
[1742280428672,0.1194883,82319.0,82318.0,0.6026649]
[1742280429971,0.1318,82320.0,82319.0,0.1214883]
[1742280430175,0.1318,82320.0,82319.0,0.3931883]
[1742280430470,0.3608,82326.0,82324.0,0.1214795]
[1742280430775,0.18148684,82330.0,82329.0,0.1214736]
[1742280430966,0.18148684,82330.0,82329.0,0.3514736]
[1742280431164,0.18148684,82330.0,82329.0,0.6232736]
[1742280431573,0.1315,82334.0,82333.0,0.1214676]
[1742280431873,0.2529662,82334.0,82333.0,0.5281476]
[1742280432070,0.3608,82335.0,82334.0,0.1214662]
[1742280432263,0.3608,82335.0,82334.0,0.7999062]
[1742280432871,0.1214647,82335.0,82334.0,0.28]
[1742280433074,0.1214647,82335.0,82321.0,0.4307421]
[1742280433075,0.1214839,82322.0,82321.0,0.1249]
[1742280433272,0.1214839,82322.0,82321.0,0.2515]
[1742280433672,0.1281,82323.0,82321.0,0.3729854]
[1742280433974,0.2529765,82327.0,82325.0,0.1214795]
[1742280434174,0.1281,82331.0,82330.0,0.1214721]
[1742280434367,0.2495706,82331.0,82330.0,0.2482321]
[1742280434566,0.1281,82331.0,82330.0,0.2482321]
[1742280435781,0.060729,82340.0,82337.0,0.1214617]
[1742280435968,0.4822603,82338.0,82337.0,0.2480617]
[1742280436362,0.1214603,82338.0,82337.0,0.4980617]
[1742280436574,0.1214603,82338.0,82337.0,0.7649617]
[1742280436981,0.00018229,82341.0,82339.0,0.1214588]
[1742280437170,0.1239,82350.0,82346.0,0.1214485]
[1742280437376,0.04857,82352.0,82351.0,0.1214411]
[1742280437572,0.1239,82357.0,82356.0,0.1214337]
[1742280437772,0.1293,82361.0,82360.0,0.1214278]
[1742280437975,0.1293,82361.0,82360.0,0.3814278]
[1742280438472,0.1239,82364.0,82363.0,0.1214234]
[1742280438670,0.121421,82365.0,82364.0,0.1214205]
[1742280438875,0.121421,82365.0,82364.0,0.6585205]
[1742280439175,0.38351652,82365.0,82364.0,1.5806805]
[1742280439375,0.00379552,82365.0,82364.0,1.5806805]
[1742280439578,0.41018275,82366.0,82365.0,0.1214205]
[1742280439777,0.41018275,82366.0,82365.0,0.3914205]
[1742280439965,0.41018275,82366.0,82365.0,0.3857205]
[1742280440170,0.41018275,82366.0,82365.0,0.6357205]
[1742280440570,0.28876375,82366.0,82365.0,0.6357205]
[1742280441077,0.41018275,82366.0,82365.0,0.6357205]
[1742280441377,0.6855854,82366.0,82365.0,0.6357205]
[1742280441582,0.4211854,82366.0,82365.0,0.6357205]
[1742280441779,0.3037664,82366.0,82365.0,0.6357205]
[1742280441980,0.3077664,82366.0,82365.0,0.6357205]
[1742280442165,0.32497263,82371.0,82365.0,0.6643]